bitfinex/quotes_SOLUSD_20230112
["timestamp","ask_amount","ask_price","bid_price","bid_amount"]
[1673484737778,114.1768,16.631,16.617,0.96]
[1673484738012,17.0,16.63,16.616,20.0]
[1673484738215,17.0,16.63,16.614,20.0]
[1673484738425,20.0,16.629,16.615,1.92]
[1673484738748,17.0,16.628,16.614,65.16]
[1673484739058,17.0,16.628,16.614,20.0]
[1673484739059,18.92,16.628,16.614,20.0]
[1673484739273,18.92,16.628,16.61,65.17]
[1673484739464,18.92,16.628,16.61,20.0]
[1673484739682,45.12,16.627,16.601,20.0]
[1673484739891,18.92,16.626,16.601,20.0]
[1673484740206,20.0,16.624,16.603,19.14496728]
[1673484740411,18.92,16.623,16.604,45.19]
[1673484740622,18.92,16.623,16.603,19.14496728]
[1673484741054,112.9615,16.622,16.604,19.14496728]
[1673484741242,20.0,16.62,16.604,19.14496728]
[1673484741459,17.0,16.619,16.604,19.14496728]
[1673484741892,17.0,16.619,16.605,0.96]
[1673484742090,17.0,16.619,16.606,0.96]
[1673484743588,17.0,16.619,16.605,20.96]
[1673484743589,0.96,16.618,16.596,45.21]
[1673484743809,1.92,16.618,16.594,45.21]
[1673484744013,40.61,16.62,16.594,45.21]
[1673484744014,45.15,16.617,16.594,45.21]
[1673484744225,20.0,16.62,16.596,20.0]
[1673484744443,20.0,16.62,16.597,45.21]
[1673484744660,45.15,16.619,16.597,19.14496728]
[1673484744976,45.15,16.619,16.598,19.14496728]
[1673484745193,20.0,16.618,16.598,19.14496728]
[1673484745694,20.0,16.616,16.594,45.21]
[1673484746028,18.92,16.615,16.597,19.14496728]
[1673484746230,20.0,16.614,16.597,19.14496728]
[1673484746550,45.15,16.616,16.598,20.0]
[1673484746745,45.15,16.617,16.598,20.0]
[1673484746956,20.0,16.616,16.598,20.0]
[1673484747916,45.16,16.615,16.598,20.0]
[1673484748138,45.16,16.615,16.599,21.06496728]
[1673484748324,20.0,16.616,16.599,21.06496728]
[1673484748534,20.0,16.616,16.6,39.14496728]
[1673484748759,20.0,16.616,16.6,19.14496728]
[1673484748966,20.0,16.616,16.599,1.92]
[1673484749377,18.92,16.615,16.599,21.92]
[1673484749592,18.92,16.615,16.599,20.0]
[1673484750009,64.08,16.615,16.599,20.0]
[1673484750338,20.0,16.614,16.596,19.14496728]
[1673484750530,17.0,16.613,16.597,20.0]
[1673484750753,0.96,16.612,16.597,20.0]
[1673484751161,20.96,16.612,16.597,20.0]
[1673484751372,17.96,16.611,16.597,20.0]
[1673484751786,0.96,16.61,16.597,20.0]
[1673484752213,115.8325,16.613,16.594,20.0]
[1673484752415,115.8325,16.613,16.597,19.14496728]
[1673484752635,115.8325,16.613,16.598,20.0]
[1673484752846,18.92,16.612,16.598,20.0]
[1673484753046,20.0,16.611,16.598,20.0]
[1673484753253,17.0,16.61,16.592,45.22]
[1673484753466,17.0,16.61,16.582,20.0]
[1673484753467,62.17,16.61,16.591,19.14496728]
[1673484753695,1.92,16.609,16.593,19.14496728]
[1673484753896,62.17,16.61,16.593,19.14496728]
[1673484754103,20.0,16.609,16.593,19.14496728]
[1673484754334,17.96,16.608,16.593,19.14496728]
[1673484754538,18.92,16.608,16.593,19.14496728]
[1673484754745,18.92,16.608,16.588,20.0]
[1673484754962,18.92,16.608,16.588,39.14496728]
[1673484755148,18.92,16.608,16.589,19.14496728]
[1673484756019,18.92,16.608,16.59,20.0]
[1673484756327,18.92,16.608,16.59,39.14496728]
[1673484756516,20.0,16.609,16.59,39.14496728]
[1673484756726,20.0,16.609,16.591,64.36496728]
[1673484757163,20.0,16.612,16.592,19.14496728]
[1673484757380,20.0,16.612,16.593,65.22]
[1673484757562,20.0,16.612,16.593,107.87111017]
[1673484757780,20.0,16.612,16.594,19.14496728]
[1673484757994,20.0,16.612,16.595,45.21]
[1673484758319,20.0,16.612,16.596,20.0]
[1673484758518,17.0,16.611,16.596,20.0]
[1673484758730,20.0,16.61,16.591,20.0]
[1673484759049,17.0,16.609,16.592,45.22]
[1673484759256,17.0,16.609,16.593,20.0]
[1673484759464,20.0,16.61,16.594,46.17]
[1673484759679,17.0,16.609,16.595,20.96]
[1673484759884,20.0,16.61,16.596,45.21]
[1673484760108,20.0,16.61,16.597,21.92]
[1673484760414,20.0,16.615,16.6,20.45]
[1673484760616,20.0,16.617,16.601,67.12]
[1673484760837,20.0,16.618,16.601,67.12]
[1673484760838,20.0,16.618,16.602,5.5433]
[1673484761048,20.0,16.624,16.603,67.11]
[1673484761582,45.12,16.628,16.604,66.00924017]
[1673484761893,20.0,16.63,16.605,113.96427289]
[1673484762106,64.12,16.629,16.605,112.04427289]
[1673484762304,5.56526,16.628,16.604,20.0]
[1673484762519,65.12,16.627,16.604,20.0]
[1673484762733,20.61,16.62,16.598,19.14496728]
[1673484762930,182.1461,16.619,16.598,19.14496728]
[1673484763140,0.96,16.618,16.598,19.14496728]
[1673484763357,0.96,16.617,16.598,19.14496728]
[1673484763567,0.96,16.617,16.593,45.22]
[1673484763780,0.96,16.616,16.599,20.0]
[1673484764209,45.16,16.615,16.596,20.0]
[1673484764401,45.16,16.615,16.585,45.24]
[1673484764402,137.2181,16.614,16.592,19.14496728]
[1673484764611,135.2981,16.614,16.597,19.14496728]
[1673484764822,135.2981,16.614,16.597,38.28993456]
[1673484765044,20.0,16.613,16.587,20.0]
[1673484765262,17.0,16.612,16.588,45.23]
[1673484765658,20.0,16.611,16.588,64.37496728]
[1673484765888,18.92,16.61,16.589,39.14496728]
[1673484766091,20.0,16.609,16.59,45.22]
[1673484766293,20.0,16.609,16.591,20.96]
[1673484766294,17.0,16.608,16.591,20.96]
[1673484766625,17.0,16.608,16.592,45.22]
[1673484766837,17.0,16.608,16.593,21.92]
[1673484767034,17.0,16.608,16.593,41.06496728]
[1673484767451,17.0,16.608,16.594,19.14496728]
[1673484767655,1.92,16.607,16.588,45.23]
[1673484767990,20.0,16.606,16.589,19.14496728]
[1673484768180,17.0,16.605,16.589,19.14496728]
[1673484768405,1.92,16.604,16.589,19.14496728]
[1673484768630,0.96,16.604,16.589,19.14496728]
[1673484768825,0.96,16.603,16.589,19.14496728]
[1673484769244,0.96,16.603,16.59,20.0]
[1673484769467,20.0,16.606,16.589,19.14496728]
[1673484769672,20.0,16.606,16.591,19.14496728]
[1673484769879,20.0,16.606,16.592,18.92]
[1673484770199,20.0,16.607,16.593,19.14496728]
[1673484770915,20.0,16.613,16.593,19.14496728]
[1673484770916,20.0,16.626,16.6,20.59]
[1673484771126,20.0,16.625,16.601,65.2]
[1673484771345,20.0,16.625,16.602,1.92]
[1673484771549,20.0,16.625,16.603,45.19]
[1673484771770,20.0,16.625,16.604,21.92]
[1673484771985,20.0,16.625,16.605,45.18]
[1673484772180,20.0,16.625,16.606,20.96]
[1673484772393,20.0,16.625,16.607,45.18]
[1673484772612,20.0,16.625,16.608,20.0]
[1673484773357,18.92,16.624,16.606,65.18]
[1673484773775,20.0,16.623,16.606,65.18]
[1673484773992,17.0,16.622,16.606,65.18]
[1673484774513,0.96,16.621,16.607,0.96]
[1673484774699,17.0,16.622,16.606,65.18]
[1673484774912,21.92,16.621,16.606,65.18]
[1673484775118,17.0,16.62,16.606,65.18]
[1673484775976,20.0,16.622,16.607,1.92]
[1673484776195,108.8549,16.623,16.607,21.06496728]
[1673484776386,108.8549,16.623,16.608,81.32496728]
[1673484776592,20.0,16.625,16.609,21.92]
[1673484776799,20.0,16.625,16.61,62.17]
[1673484777029,20.0,16.627,16.611,1.92]
[1673484777223,20.0,16.627,16.611,21.06496728]
[1673484777444,20.0,16.627,16.612,36.14496728]
[1673484777666,20.0,16.627,16.613,1.92]
[1673484777875,20.0,16.627,16.613,21.06496728]
[1673484778189,20.0,16.627,16.61,45.17]
[1673484778190,20.0,16.627,16.614,19.14496728]
[1673484778404,20.0,16.627,16.615,1.92]
[1673484778929,20.0,16.627,16.614,19.14496728]
[1673484779137,20.0,16.627,16.615,0.96]
[1673484779351,20.0,16.627,16.614,19.14496728]
[1673484779670,20.0,16.627,16.61,45.17]
[1673484779858,20.0,16.627,16.611,21.06496728]
[1673484780069,17.0,16.625,16.611,21.06496728]
[1673484780927,16.5,16.625,16.609,20.0]
[1673484781137,1.92,16.624,16.605,19.14496728]
[1673484781329,1.92,16.624,16.606,65.18]
[1673484781544,47.05,16.624,16.606,20.0]
[1673484781759,20.0,16.623,16.606,20.0]
[1673484782087,20.0,16.622,16.607,19.14496728]
[1673484782297,1.92,16.621,16.607,19.14496728]
[1673484782602,20.0,16.627,16.608,65.18]
[1673484782810,20.0,16.627,16.609,20.0]
[1673484783017,20.0,16.627,16.61,45.17]
[1673484783225,128.1637,16.627,16.61,64.31496728]
[1673484783430,128.1637,16.627,16.611,21.06496728]
[1673484783633,118.8938,16.632,16.612,65.17]
[1673484783847,118.8938,16.632,16.613,1.92]
[1673484784053,108.1637,16.634,16.614,45.16]
[1673484784267,108.1637,16.634,16.615,21.92]
[1673484784484,108.1637,16.634,16.616,45.15]
[1673484784709,108.1637,16.634,16.617,41.92]
[1673484784913,20.0,16.639,16.618,62.15]
[1673484785117,119.0241,16.641,16.619,20.96]
[1673484785335,119.0241,16.641,16.62,66.1]
[1673484785533,119.0241,16.641,16.621,20.96]
[1673484785739,119.0241,16.641,16.622,46.1]
[1673484785950,119.0241,16.641,16.623,0.96]
[1673484786160,15.5,16.64,16.625,1.71484258]
[1673484786477,35.5,16.64,16.626,1.92]
[1673484786914,35.5,16.64,16.626,21.06496728]
[1673484787127,20.0,16.644,16.627,39.14496728]
[1673484787311,20.0,16.646,16.628,48.54]
[1673484787529,20.0,16.646,16.628,67.68496728]
[1673484787749,20.0,16.646,16.629,59.14496728]
[1673484787953,45.06,16.649,16.63,3.42]
[1673484788160,45.06,16.649,16.63,22.56496728]
[1673484788386,114.5813,16.65,16.631,56.14496728]
[1673484788588,114.5813,16.65,16.632,3.42]
[1673484788788,114.5813,16.65,16.632,22.56496728]
[1673484789234,114.5813,16.65,16.633,19.14496728]
[1673484789434,114.5813,16.65,16.634,1.5]
[1673484789435,20.0,16.649,16.634,1.5]
[1673484789644,20.0,16.649,16.635,1.92]
[1673484789841,20.0,16.649,16.635,21.06496728]
[1673484790052,116.2857,16.652,16.636,65.74496728]
[1673484790262,136.2857,16.658,16.637,20.96]
[1673484790478,136.2857,16.658,16.638,46.59]
[1673484790686,136.2857,16.658,16.639,17.96]
[1673484790892,136.2857,16.658,16.64,22.98555911]
[1673484791098,20.0,16.658,16.641,20.96]
[1673484791425,45.02,16.667,16.642,84.86160622]
[1673484791639,117.5304,16.668,16.643,20.96]
[1673484791836,117.5304,16.668,16.644,46.04]
[1673484792053,20.0,16.667,16.644,142.54352741]
[1673484792262,20.0,16.667,16.645,116.60849469]
[1673484792464,117.5304,16.668,16.646,46.03]
[1673484792685,117.5304,16.668,16.647,20.96]
[1673484792885,117.5304,16.668,16.648,83.03]
[1673484793099,45.0,16.674,16.65,20.51]
[1673484793318,20.0,16.675,16.651,63.98]
[1673484793532,20.0,16.675,16.652,20.0]
[1673484793722,20.0,16.675,16.653,45.05]
[1673484793936,20.0,16.675,16.654,21.92]
[1673484794155,20.0,16.675,16.655,65.05]
[1673484794364,19.0,16.675,16.657,1.0]
[1673484794578,45.0,16.674,16.656,1.0]
[1673484794777,20.55,16.67,16.646,1.0]
[1673484794988,45.01,16.669,16.649,19.14496728]
[1673484795204,20.0,16.668,16.644,1.0]
[1673484795429,45.02,16.667,16.644,1.0]
[1673484795635,239.9444,16.668,16.647,19.14496728]
[1673484795846,239.9444,16.668,16.648,65.07]
[1673484796041,239.9444,16.668,16.648,102.75192119]
[1673484796254,239.9444,16.668,16.649,59.74688847]
[1673484796575,239.9444,16.668,16.651,20.0]
[1673484796772,17.0,16.667,16.652,1.92]
[1673484796986,17.0,16.667,16.652,21.06496728]
[1673484797192,239.9444,16.668,16.653,19.14496728]
[1673484797411,239.9444,16.668,16.654,1.92]
[1673484797631,239.9444,16.668,16.654,21.92]
[1673484797842,239.9444,16.668,16.654,78.74688847]
[1673484798032,239.9444,16.668,16.654,41.06496728]
[1673484798243,45.0,16.672,16.654,41.06496728]
[1673484798455,44.99,16.676,16.656,1.70769898]
[1673484798660,20.0,16.679,16.658,21.70769898]
[1673484798661,111.9209,16.674,16.658,21.70769898]
[1673484799101,65.0,16.673,16.659,30.58524421]
[1673484799313,20.0,16.672,16.659,19.14496728]
[1673484799545,44.99,16.676,16.659,19.14496728]
[1673484799738,111.9209,16.679,16.661,1.65577585]
[1673484800135,111.9209,16.679,16.663,1.65577585]
[1673484800559,20.0,16.676,16.652,20.0]
[1673484800765,20.0,16.676,16.659,19.14496728]
[1673484800985,20.0,16.676,16.66,1.69298646]
[1673484801396,17.0,16.675,16.659,40.88858786]
[1673484801605,44.99,16.678,16.662,20.0]
[1673484801814,111.9209,16.679,16.663,1.92]
[1673484802047,111.9209,16.679,16.663,61.95355514]
[1673484802568,111.9209,16.679,16.664,20.0]
[1673484802780,111.9209,16.679,16.665,0.96]
[1673484803189,111.9209,16.679,16.663,60.03355514]
[1673484803391,111.9209,16.679,16.665,19.14496728]
[1673484803600,111.9209,16.679,16.666,20.0]
[1673484804247,111.9209,16.679,16.667,1.92]
[1673484804566,44.96,16.686,16.666,20.0]
[1673484804780,671.39433452,16.723,16.67,20.56]
[1673484804781,115.2612,16.697,16.67,20.56]
[1673484805087,44.95,16.693,16.671,126.96355514]
[1673484805285,115.2612,16.697,16.671,132.04661491]
[1673484805497,115.2612,16.697,16.672,57.88858786]
[1673484805839,20.0,16.694,16.673,40.88858786]
[1673484806039,64.95,16.693,16.674,0.96]
[1673484806354,64.95,16.693,16.675,40.88858786]
[1673484806549,20.61,16.69,16.675,40.88858786]
[1673484806761,43.96,16.689,16.661,65.03]
[1673484806974,43.96,16.689,16.669,40.88858786]
[1673484807187,138.4984,16.688,16.669,40.88858786]
[1673484807396,64.96,16.687,16.669,40.88858786]
[1673484807614,17.0,16.686,16.669,40.88858786]
[1673484807806,44.97,16.685,16.669,40.88858786]
[1673484808023,130.2443,16.686,16.669,60.03355514]
[1673484808226,130.2443,16.686,16.669,40.88858786]
[1673484808442,130.2443,16.686,16.67,40.88858786]
[1673484808661,20.0,16.685,16.665,39.50781556]
[1673484808876,18.92,16.684,16.664,19.14496728]
[1673484809064,103.03496728,16.684,16.66,30.58524421]
[1673484809279,83.89,16.684,16.66,30.58524421]
[1673484809491,20.0,16.683,16.661,59.81688847]
[1673484809703,81.98,16.682,16.661,59.81688847]
[1673484810031,81.98,16.682,16.66,70.09305977]
[1673484810224,1.92,16.681,16.662,19.14496728]
[1673484810434,20.0,16.679,16.662,19.14496728]
[1673484810646,17.0,16.678,16.662,19.14496728]
[1673484810980,0.96,16.677,16.661,40.67192119]
[1673484811199,0.96,16.677,16.655,45.05]
[1673484811200,45.95,16.676,16.655,45.05]
[1673484811391,17.0,16.675,16.657,40.67192119]
[1673484811607,20.0,16.674,16.657,40.67192119]
[1673484812140,65.0,16.673,16.657,40.67192119]
[1673484812540,20.0,16.672,16.645,20.0]
[1673484812757,20.0,16.672,16.652,39.50781556]
[1673484812758,45.01,16.671,16.652,39.50781556]
[1673484813082,45.01,16.671,16.646,75.65524421]
[1673484813293,20.0,16.669,16.647,39.50781556]
[1673484813482,45.01,16.668,16.647,58.65278284]
[1673484813692,1.92,16.667,16.648,19.14496728]
[1673484813904,45.02,16.666,16.648,58.65278284]
[1673484814342,1.92,16.665,16.643,45.08]
[1673484814552,21.92,16.665,16.641,45.09]
[1673484814740,45.02,16.664,16.641,83.37993456]
[1673484814953,157.8895,16.668,16.642,39.50781556]
[1673484815165,112.8795,16.668,16.643,65.08]
[1673484815370,112.8795,16.668,16.643,114.81021149]
[1673484815601,108.7855,16.67,16.644,109.23802705]
[1673484815921,108.7855,16.67,16.65,20.45]
[1673484816143,108.7855,16.67,16.651,66.98]
[1673484816443,108.7855,16.67,16.653,20.0]
[1673484816640,108.7855,16.67,16.654,66.97]
[1673484816846,108.7855,16.67,16.654,86.11496728]
[1673484817062,108.7855,16.67,16.655,19.14496728]
[1673484817277,108.7855,16.67,16.656,66.97]
[1673484817495,108.7855,16.67,16.657,20.0]
[1673484817813,108.7855,16.67,16.658,21.92]
[1673484818003,108.7855,16.67,16.658,41.06496728]
[1673484818213,44.99,16.678,16.659,19.14496728]
[1673484818430,117.6414,16.682,16.661,20.0]
[1673484818755,117.6414,16.682,16.662,65.03]
[1673484818961,117.6414,16.682,16.663,20.0]
[1673484819168,44.96,16.687,16.664,65.98]
[1673484819370,20.0,16.685,16.665,20.96]
[1673484819584,20.0,16.685,16.666,65.98]
[1673484819800,20.0,16.685,16.666,39.14496728]
[1673484820000,20.0,16.685,16.667,64.16496728]
[1673484820213,20.0,16.685,16.668,20.0]
[1673484820431,113.2443,16.686,16.668,84.15496728]
[1673484820744,113.2443,16.686,16.669,19.14496728]
[1673484820961,113.2443,16.686,16.67,0.96]
[1673484821166,113.2443,16.686,16.671,0.96]
[1673484821379,20.0,16.685,16.669,0.96]
[1673484821587,20.0,16.685,16.668,20.0]
[1673484821806,20.0,16.683,16.665,20.0]
[1673484821994,20.0,16.683,16.663,19.14496728]
[1673484822206,64.98,16.682,16.663,19.14496728]
[1673484822432,20.0,16.681,16.659,40.67192119]
[1673484822648,62.94,16.68,16.659,59.81688847]
[1673484822857,0.96,16.679,16.659,59.81688847]
[1673484823164,44.99,16.678,16.659,59.81688847]
[1673484823377,20.0,16.676,16.659,59.81688847]
[1673484823697,17.0,16.675,16.659,19.14496728]
[1673484823916,20.0,16.676,16.659,19.14496728]
[1673484824309,1.92,16.675,16.659,19.14496728]
[1673484824639,46.91,16.675,16.656,45.05]
[1673484824850,46.91,16.675,16.656,83.33993456]
[1673484825057,1.92,16.675,16.657,19.14496728]
[1673484825268,20.0,16.674,16.657,40.67192119]
[1673484825475,82.0,16.673,16.652,45.06]
[1673484825679,1.92,16.672,16.652,45.06]
[1673484826090,20.61,16.67,16.651,40.67192119]
[1673484826303,20.61,16.67,16.645,45.08]
[1673484826304,20.0,16.668,16.645,45.08]
[1673484826511,45.02,16.667,16.645,45.08]
[1673484826735,20.0,16.665,16.645,45.08]
[1673484826950,17.96,16.664,16.645,45.08]
[1673484827162,0.96,16.663,16.645,45.08]
[1673484827481,20.0,16.663,16.643,45.08]
[1673484827673,18.92,16.662,16.643,45.08]
[1673484828096,20.0,16.676,16.644,19.14496728]
[1673484828294,20.0,16.672,16.645,50.60898]
[1673484828510,20.46,16.67,16.645,45.08]
[1673484828724,45.01,16.669,16.644,45.08]
[1673484828931,5.52848,16.668,16.641,45.09]
[1673484829147,45.02,16.667,16.639,45.09]
[1673484829451,20.45,16.66,16.636,79.63882564]
[1673484829781,179.7149,16.659,16.637,34.53882564]
[1673484829980,161.7549,16.659,16.638,45.09]
[1673484830188,161.7549,16.659,16.639,20.0]
[1673484830189,116.7149,16.659,16.639,20.0]
[1673484830404,116.7149,16.659,16.64,65.68]
[1673484830614,116.7149,16.659,16.64,119.36379292]
[1673484830833,116.7149,16.659,16.642,20.0]
[1673484831038,116.7149,16.659,16.643,67.0]
[1673484831257,116.7149,16.659,16.644,20.0]
[1673484831478,116.7149,16.659,16.645,67.0]
[1673484831787,113.7918,16.668,16.646,20.0]
[1673484832104,112.7254,16.667,16.647,66.99]
[1673484832291,112.7254,16.667,16.648,20.0]
[1673484832506,112.7254,16.667,16.649,46.98]
[1673484832716,112.7254,16.667,16.649,66.12496728]
[1673484833154,112.7254,16.667,16.65,19.14496728]
[1673484833466,44.99,16.675,16.651,83.98]
[1673484833681,112.7254,16.674,16.652,20.0]
[1673484833891,112.7254,16.674,16.653,63.97]
[1673484834086,20.0,16.673,16.654,40.0]
[1673484834295,20.0,16.673,16.655,46.97]
[1673484834499,20.0,16.673,16.656,20.0]
[1673484834712,20.0,16.673,16.657,46.96]
[1673484834921,112.7254,16.674,16.658,20.0]
[1673484835148,20.0,16.673,16.657,19.14496728]
[1673484835367,20.0,16.673,16.649,45.06]
[1673484835680,45.0,16.672,16.647,45.07]
[1673484835889,18.92,16.671,16.647,45.07]
[1673484836088,20.0,16.669,16.647,45.07]
[1673484836301,174.8205,16.668,16.648,19.14496728]
[1673484836512,174.8205,16.668,16.641,45.09]
[1673484836728,20.0,16.667,16.645,19.14496728]
[1673484836925,62.02,16.666,16.645,19.14496728]
[1673484837131,20.0,16.664,16.642,45.08]
[1673484837344,83.95,16.663,16.639,45.09]
[1673484837555,83.95,16.663,16.64,19.14496728]
[1673484837556,20.46,16.66,16.64,19.14496728]
[1673484837870,63.96,16.659,16.64,19.14496728]
[1673484838284,20.0,16.658,16.64,19.14496728]
[1673484838501,61.04,16.657,16.635,45.1]
[1673484838819,1.92,16.656,16.636,19.14496728]
[1673484839246,115.8124,16.655,16.637,45.1]
[1673484839556,17.0,16.654,16.637,45.1]
[1673484839762,17.0,16.654,16.638,19.14496728]
[1673484839977,37.0,16.654,16.638,19.14496728]
[1673484840304,20.96,16.653,16.634,45.11]
[1673484840608,20.96,16.653,16.631,45.11]
[1673484840609,20.61,16.65,16.631,45.11]
[1673484840822,0.96,16.649,16.63,19.14496728]
[1673484841019,0.96,16.648,16.63,19.14496728]
[1673484841232,45.07,16.647,16.625,45.13]
[1673484841439,137.7639,16.646,16.626,19.14496728]
[1673484841658,20.0,16.644,16.626,19.14496728]
[1673484841882,18.92,16.643,16.626,19.14496728]
[1673484842194,20.0,16.642,16.62,19.14496728]
[1673484842504,20.61,16.64,16.621,45.14]
[1673484842719,45.09,16.639,16.617,34.53882564]
[1673484842926,45.09,16.639,16.617,19.14496728]
[1673484842927,20.0,16.637,16.617,19.14496728]
[1673484843119,45.1,16.636,16.617,19.14496728]
[1673484843327,17.0,16.635,16.618,19.14496728]
[1673484843771,17.0,16.636,16.615,20.0]
[1673484844082,17.0,16.636,16.617,20.0]
[1673484844282,17.0,16.636,16.618,47.07]
[1673484844493,17.0,16.636,16.618,66.21496728]
[1673484844912,17.0,16.636,16.619,19.14496728]
[1673484845119,20.0,16.64,16.621,20.0]
[1673484845439,20.0,16.64,16.622,19.14496728]
[1673484845978,45.09,16.639,16.618,45.15]
[1673484846168,20.0,16.638,16.619,39.14496728]
[1673484846384,20.0,16.636,16.619,39.14496728]
[1673484846602,17.0,16.635,16.619,39.14496728]
[1673484846917,1.92,16.634,16.619,20.0]
[1673484847132,20.0,16.636,16.598,116.82875577]
[1673484847133,45.11,16.633,16.615,39.14496728]
[1673484847339,65.1,16.636,16.619,19.14496728]
[1673484847865,20.0,16.636,16.616,45.15]
[1673484848076,20.0,16.636,16.617,20.96]
[1673484848267,20.0,16.636,16.618,0.96]
[1673484848472,20.0,16.636,16.618,20.10496728]
[1673484848683,65.1,16.636,16.619,39.14496728]
[1673484848897,20.0,16.636,16.619,39.14496728]
[1673484849127,20.0,16.636,16.619,20.0]
[1673484849544,20.0,16.636,16.617,20.0]
[1673484849866,20.0,16.634,16.617,20.0]
[1673484850075,17.0,16.633,16.617,20.0]
[1673484850389,20.0,16.636,16.618,19.14496728]
[1673484850595,131.236,16.637,16.619,65.15]
[1673484850800,131.236,16.637,16.62,1.92]
[1673484851120,20.0,16.636,16.62,19.14496728]
[1673484851946,17.0,16.635,16.62,19.14496728]
[1673484853311,65.09,16.639,16.62,19.14496728]
[1673484853649,131.4029,16.65,16.621,100.63882564]
[1673484853864,137.3887,16.649,16.622,0.96]
[1673484854061,20.0,16.647,16.623,45.14]
[1673484854382,20.0,16.649,16.622,53.68379292]
[1673484854577,20.0,16.649,16.63,103.05]
[1673484854791,20.0,16.649,16.64,20.61]
[1673484855003,20.0,16.649,16.641,65.09]
[1673484855201,38.30793365,16.654,16.641,84.23496728]
[1673484855414,20.0,16.659,16.641,84.23496728]
[1673484855620,20.0,16.659,16.642,38.06496728]
[1673484855840,45.02,16.666,16.643,65.08]
[1673484856049,117.3887,16.672,16.643,84.22496728]
[1673484856050,45.01,16.671,16.643,84.22496728]
[1673484856274,45.01,16.668,16.644,19.14496728]
[1673484856588,117.3887,16.672,16.645,45.08]
[1673484856589,45.01,16.671,16.645,45.08]
[1673484856802,20.0,16.67,16.646,1.92]
[1673484856993,45.02,16.666,16.647,45.07]
[1673484857198,45.02,16.666,16.648,20.0]
[1673484857522,45.01,16.668,16.649,45.06]
[1673484857731,20.0,16.67,16.649,64.20496728]
[1673484857938,65.01,16.671,16.649,83.34993456]
[1673484858154,20.0,16.671,16.65,19.14496728]
[1673484858364,20.0,16.671,16.651,45.06]
[1673484858591,20.0,16.671,16.652,20.0]
[1673484858796,20.0,16.671,16.653,45.05]
[1673484859418,117.3887,16.672,16.653,45.05]
[1673484859758,117.3887,16.672,16.655,20.0]
[1673484860076,117.3887,16.672,16.657,20.0]
[1673484860260,117.3887,16.672,16.658,66.0]
[1673484860472,117.3887,16.672,16.658,86.10496728]
[1673484860675,20.0,16.676,16.659,19.14496728]
[1673484860904,44.98,16.682,16.661,20.0]
[1673484861101,114.3112,16.684,16.662,20.0]
[1673484861431,114.3112,16.684,16.663,63.95]